[Event "*** SCC Grand Prix: Titled Tuesday Blitz"]
[Site "Chess.com"]
[Date "2020.07.21"]
[Round "10"]
[White "jb2mix"]
[Black "chigorin28"]
[Result "1-0"]
[WhiteElo "2682"]
[BlackElo "2455"]
[TimeControl "180+1"]
[EndTime "11:54:53 PDT"]
[Termination "jb2mix won by resignation"]

1. e4 {[%clk 0:03:00]} 1... c6 {[%clk 0:02:59.9]} 2. d4 {[%clk 0:03:00.4]} 2...
d5 {[%clk 0:03:00.2]} 3. Nc3 {[%clk 0:03:01.3]} 3... dxe4 {[%clk 0:02:59.5]} 4.
Nxe4 {[%clk 0:03:02.2]} 4... Bf5 {[%clk 0:02:59.8]} 5. Ng3 {[%clk 0:03:02.5]}
5... Bg6 {[%clk 0:02:59.8]} 6. N1e2 {[%clk 0:03:03.4]} 6... h6 {[%clk
0:02:57.8]} 7. Nf4 {[%clk 0:03:01.1]} 7... Bh7 {[%clk 0:02:57.7]} 8. Bc4 {[%clk
0:03:02]} 8... e6 {[%clk 0:02:56.2]} 9. Qe2 {[%clk 0:03:01.5]} 9... Bd6 {[%clk
0:02:34.1]} 10. O-O {[%clk 0:02:20.9]} 10... Nf6 {[%clk 0:02:30.4]} 11. Nxe6
{[%clk 0:02:16]} 11... fxe6 {[%clk 0:02:30.4]} 12. Qxe6+ {[%clk 0:02:16.9]}
12... Qe7 {[%clk 0:02:15.2]} 13. Qc8+ {[%clk 0:02:16.3]} 13... Qd8 {[%clk
0:02:13.3]} 14. Re1+ {[%clk 0:02:16.8]} 14... Be7 {[%clk 0:02:13.7]} 15. Rxe7+
{[%clk 0:02:17.2]} 15... Kxe7 {[%clk 0:02:07.6]} 16. Qe6+ {[%clk 0:02:17.5]} 1-0

[Event "*** SCC Grand Prix: Titled Tuesday Blitz"]
[Site "Chess.com"]
[Date "2020.07.21"]
[Round "10"]
[White "Zhani-Z"]
[Black "eightbyeightchess"]
[Result "1-0"]
[WhiteElo "2435"]
[BlackElo "2422"]
[TimeControl "180+1"]
[EndTime "11:55:04 PDT"]
[Termination "Zhani-Z won by resignation"]

1. e4 {[%clk 0:03:00.9]} 1... d5 {[%clk 0:02:58.9]} 2. exd5 {[%clk 0:03:00.4]}
2... Nf6 {[%clk 0:02:59.3]} 3. Nf3 {[%clk 0:02:57.6]} 3... Bg4 {[%clk
0:02:56.2]} 4. d4 {[%clk 0:02:54.5]} 4... Qxd5 {[%clk 0:02:55.8]} 5. Be2 {[%clk
0:02:51.8]} 5... Nc6 {[%clk 0:02:55.9]} 6. c3 {[%clk 0:02:50.3]} 6... O-O-O
{[%clk 0:02:55.3]} 7. Qb3 {[%clk 0:02:49.1]} 7... Qh5 {[%clk 0:02:33.5]} 8. Bf4
{[%clk 0:02:47.3]} 8... Nd5 {[%clk 0:02:05.3]} 9. Bg3 {[%clk 0:02:46.5]} 9... e6
{[%clk 0:02:04.8]} 10. Nbd2 {[%clk 0:02:45.6]} 10... f5 {[%clk 0:01:57.7]} 11.
h3 {[%clk 0:02:35.6]} 11... f4 {[%clk 0:01:56.3]} 12. Bh4 {[%clk 0:02:35.7]}
12... g5 {[%clk 0:01:52]} 13. hxg4 {[%clk 0:02:34.4]} 13... Qxg4 {[%clk
0:01:49]} 14. Nxg5 {[%clk 0:02:27.8]} 14... Qxg2 {[%clk 0:01:47.2]} 15. Bf3
{[%clk 0:02:27.9]} 1-0

[Event "*** SCC Grand Prix: Titled Tuesday Blitz"]
[Site "Chess.com"]
[Date "2020.07.21"]
[Round "10"]
[White "GadimbayliA"]
[Black "LyonBeast"]
[Result "1/2-1/2"]
[WhiteElo "2891"]
[BlackElo "3024"]
[TimeControl "180+1"]
[EndTime "11:55:59 PDT"]
[Termination "Game drawn by repetition"]

1. e4 {[%clk 0:03:00.9]} 1... c6 {[%clk 0:02:59.1]} 2. Nf3 {[%clk 0:02:59]} 2...
d5 {[%clk 0:02:58.6]} 3. exd5 {[%clk 0:02:59.9]} 3... cxd5 {[%clk 0:02:58.7]} 4.
Ne5 {[%clk 0:03:00.4]} 4... Nf6 {[%clk 0:02:57.8]} 5. d4 {[%clk 0:03:00.3]} 5...
e6 {[%clk 0:02:55.3]} 6. Nd2 {[%clk 0:02:58.2]} 6... Be7 {[%clk 0:02:50.2]} 7.
Bd3 {[%clk 0:02:57]} 7... Nc6 {[%clk 0:02:49.7]} 8. c3 {[%clk 0:02:56]} 8... Bd7
{[%clk 0:02:43.4]} 9. f4 {[%clk 0:02:54.5]} 9... O-O {[%clk 0:02:23.4]} 10. O-O
{[%clk 0:02:50.5]} 10... g6 {[%clk 0:02:21]} 11. Qf3 {[%clk 0:02:47.8]} 11...
Ne8 {[%clk 0:02:18.9]} 12. Qg3 {[%clk 0:02:35.4]} 12... Nd6 {[%clk 0:02:10.4]}
13. Ndf3 {[%clk 0:02:24.6]} 13... Ne4 {[%clk 0:02:05.9]} 14. Bxe4 {[%clk
0:02:20.2]} 14... dxe4 {[%clk 0:02:06.8]} 15. Ng5 {[%clk 0:02:20.7]} 15... f5
{[%clk 0:01:22.9]} 16. Nxh7 {[%clk 0:02:04.9]} 16... Kxh7 {[%clk 0:01:23.8]} 17.
Qxg6+ {[%clk 0:02:04.4]} 17... Kh8 {[%clk 0:01:24.2]} 18. Qh6+ {[%clk
0:02:04.2]} 18... Kg8 {[%clk 0:01:24.5]} 19. Qg6+ {[%clk 0:02:05.1]} 19... Kh8
{[%clk 0:01:24.9]} 20. Qh6+ {[%clk 0:02:02.9]} 20... Kg8 {[%clk 0:01:25.2]} 21.
Qg6+ {[%clk 0:02:03.8]} 21... Kh8 {[%clk 0:01:25.6]} 1/2-1/2

[Event "*** SCC Grand Prix: Titled Tuesday Blitz"]
[Site "Chess.com"]
[Date "2020.07.21"]
[Round "10"]
[White "DonBroca"]
[Black "Alindsay211"]
[Result "0-1"]
[WhiteElo "2076"]
[BlackElo "2265"]
[TimeControl "180+1"]
[EndTime "11:56:24 PDT"]
[Termination "Alindsay211 won by resignation"]

1. e4 {[%clk 0:02:57.1]} 1... e6 {[%clk 0:03:00.3]} 2. d4 {[%clk 0:02:55.8]}
2... d5 {[%clk 0:03:01.2]} 3. exd5 {[%clk 0:02:56.5]} 3... exd5 {[%clk
0:03:00.8]} 4. Nf3 {[%clk 0:02:57.4]} 4... Nf6 {[%clk 0:03:00.8]} 5. c3 {[%clk
0:02:57.5]} 5... Be7 {[%clk 0:03:00.8]} 6. Be2 {[%clk 0:02:57.5]} 6... b6 {[%clk
0:03:00.2]} 7. O-O {[%clk 0:02:58.1]} 7... O-O {[%clk 0:02:59.2]} 8. Re1 {[%clk
0:02:58.7]} 8... Bb7 {[%clk 0:02:59]} 9. Nbd2 {[%clk 0:02:59]} 9... Re8 {[%clk
0:02:58.9]} 10. Nf1 {[%clk 0:02:59.3]} 10... c5 {[%clk 0:02:58.4]} 11. Ne3
{[%clk 0:02:57.7]} 11... Nbd7 {[%clk 0:02:53.5]} 12. Qc2 {[%clk 0:02:54.1]}
12... Rc8 {[%clk 0:02:52.6]} 13. Qb1 {[%clk 0:02:53.9]} 13... Ne4 {[%clk
0:02:48.8]} 14. Nd2 {[%clk 0:02:50.8]} 14... Ndf6 {[%clk 0:02:46.6]} 15. f3
{[%clk 0:02:43.2]} 15... cxd4 {[%clk 0:02:38.5]} 16. cxd4 {[%clk 0:02:40.1]}
16... Nd6 {[%clk 0:02:23.4]} 17. b4 {[%clk 0:02:27.1]} 17... Bf8 {[%clk
0:02:18]} 18. a3 {[%clk 0:02:25.4]} 18... Rxe3 {[%clk 0:02:16.3]} 19. Ne4 {[%clk
0:02:18.8]} 19... Nc4 {[%clk 0:01:49.9]} 20. Nxf6+ {[%clk 0:02:08.3]} 20... Qxf6
{[%clk 0:01:48.5]} 21. Bxe3 {[%clk 0:02:08.9]} 21... Nxe3 {[%clk 0:01:49.1]} 22.
Qd3 {[%clk 0:01:56.6]} 22... Nc2 {[%clk 0:01:46.7]} 23. Rec1 {[%clk 0:01:36.8]}
23... Nxa1 {[%clk 0:01:45.9]} 24. Rxc8 {[%clk 0:01:36]} 24... Bxc8 {[%clk
0:01:46]} 25. Qc3 {[%clk 0:01:36.1]} 25... Qe6 {[%clk 0:01:41.9]} 0-1

[Event "*** SCC Grand Prix: Titled Tuesday Blitz"]
[Site "Chess.com"]
[Date "2020.07.21"]
[Round "10"]
[White "maiconramazzotte99"]
[Black "bmt011"]
[Result "1-0"]
[WhiteElo "1783"]
[BlackElo "2105"]
[TimeControl "180+1"]
[EndTime "11:56:54 PDT"]
[Termination "maiconramazzotte99 won by resignation"]

1. e4 {[%clk 0:03:00.9]} 1... e6 {[%clk 0:03:00.3]} 2. Nf3 {[%clk 0:02:59.4]}
2... b6 {[%clk 0:02:59.3]} 3. Nc3 {[%clk 0:02:55.1]} 3... Bb7 {[%clk 0:02:58.7]}
4. d4 {[%clk 0:02:50.5]} 4... Bb4 {[%clk 0:02:58.6]} 5. Bd3 {[%clk 0:02:46.9]}
5... c5 {[%clk 0:02:57.2]} 6. Be3 {[%clk 0:02:40.4]} 6... d5 {[%clk 0:02:51.3]}
7. Bb5+ {[%clk 0:02:26.7]} 7... Bc6 {[%clk 0:02:44.6]} 8. Bxc6+ {[%clk
0:02:07.1]} 8... Nxc6 {[%clk 0:02:43.9]} 9. dxc5 {[%clk 0:02:03.7]} 9... Bxc5
{[%clk 0:02:27.4]} 10. Bxc5 {[%clk 0:02:01]} 10... bxc5 {[%clk 0:02:26.8]} 11.
exd5 {[%clk 0:02:01.2]} 11... exd5 {[%clk 0:02:10.2]} 12. Qxd5 {[%clk
0:01:57.6]} 12... Qxd5 {[%clk 0:02:07.4]} 13. Nxd5 {[%clk 0:01:58.5]} 13...
O-O-O {[%clk 0:02:07]} 14. Rd1 {[%clk 0:01:51]} 14... Nd4 {[%clk 0:01:54.3]} 15.
Nxd4 {[%clk 0:01:44.8]} 15... Rxd5 {[%clk 0:01:54.2]} 16. Nf3 {[%clk 0:01:42.2]}
16... Rxd1+ {[%clk 0:01:53.6]} 17. Kxd1 {[%clk 0:01:40.3]} 17... Nh6 {[%clk
0:01:54]} 18. Kc1 {[%clk 0:01:34.3]} 18... Ng4 {[%clk 0:01:52.7]} 19. Rf1 {[%clk
0:01:33.4]} 19... f6 {[%clk 0:01:47.3]} 20. h3 {[%clk 0:01:29.4]} 20... Nh6
{[%clk 0:01:47.7]} 21. Rd1 {[%clk 0:01:28.8]} 21... Re8 {[%clk 0:01:46.7]} 22.
Re1 {[%clk 0:01:27.9]} 22... Rd8 {[%clk 0:01:47]} 23. Rd1 {[%clk 0:01:27.2]}
23... Re8 {[%clk 0:01:47.1]} 24. c3 {[%clk 0:01:22.6]} 24... Nf5 {[%clk
0:01:46.3]} 25. Rd5 {[%clk 0:01:20.6]} 25... Nd6 {[%clk 0:01:41.8]} 26. Rxd6
{[%clk 0:01:19]} 26... Kb7 {[%clk 0:01:42.7]} 27. Rd7+ {[%clk 0:01:16.5]} 1-0

[Event "*** SCC Grand Prix: Titled Tuesday Blitz"]
[Site "Chess.com"]
[Date "2020.07.21"]
[Round "10"]
[White "ManuDavid2910"]
[Black "AldokhinIvan"]
[Result "0-1"]
[WhiteElo "2681"]
[BlackElo "2586"]
[TimeControl "180+1"]
[EndTime "11:57:11 PDT"]
[Termination "AldokhinIvan won by resignation"]

1. e4 {[%clk 0:03:00.9]} 1... c5 {[%clk 0:02:59.7]} 2. Nf3 {[%clk 0:02:57.3]}
2... e6 {[%clk 0:02:59.5]} 3. Nc3 {[%clk 0:02:56.3]} 3... Nc6 {[%clk 0:02:58.7]}
4. Bb5 {[%clk 0:02:56]} 4... Nd4 {[%clk 0:02:58.5]} 5. O-O {[%clk 0:02:55.9]}
5... a6 {[%clk 0:02:57.2]} 6. Bd3 {[%clk 0:02:55.6]} 6... Qc7 {[%clk 0:02:53.8]}
7. Nxd4 {[%clk 0:02:54.5]} 7... cxd4 {[%clk 0:02:52.6]} 8. Ne2 {[%clk
0:02:55.1]} 8... Bc5 {[%clk 0:02:47.3]} 9. c3 {[%clk 0:02:54.2]} 9... dxc3
{[%clk 0:02:47.6]} 10. dxc3 {[%clk 0:02:54.2]} 10... Ne7 {[%clk 0:02:45.7]} 11.
Bf4 {[%clk 0:02:51]} 11... e5 {[%clk 0:02:42.3]} 12. Bg3 {[%clk 0:02:50.7]}
12... O-O {[%clk 0:02:37.9]} 13. Kh1 {[%clk 0:02:50.9]} 13... d6 {[%clk
0:02:29.6]} 14. f4 {[%clk 0:02:49.9]} 14... Bg4 {[%clk 0:02:27.6]} 15. Qd2
{[%clk 0:02:49.2]} 15... Rad8 {[%clk 0:02:09.7]} 16. Bc2 {[%clk 0:02:31.6]}
16... d5 {[%clk 0:02:02.5]} 17. fxe5 {[%clk 0:02:27.1]} 17... dxe4 {[%clk
0:01:44.4]} 18. Nd4 {[%clk 0:02:13.9]} 18... Bxd4 {[%clk 0:01:29.8]} 19. cxd4
{[%clk 0:02:13.4]} 19... Nf5 {[%clk 0:01:20.8]} 20. Bf2 {[%clk 0:01:16.8]} 20...
e3 {[%clk 0:01:13.2]} 21. Bxe3 {[%clk 0:01:15.5]} 21... Nxe3 {[%clk 0:01:13.4]}
22. Qxe3 {[%clk 0:01:16.4]} 22... Qxc2 {[%clk 0:01:12]} 23. Qe4 {[%clk
0:01:16.8]} 23... Qxe4 {[%clk 0:01:11.4]} 0-1

[Event "*** SCC Grand Prix: Titled Tuesday Blitz"]
[Site "Chess.com"]
[Date "2020.07.21"]
[Round "10"]
[White "PowerThinking2650"]
[Black "Ze-Pequeno"]
[Result "1-0"]
[WhiteElo "2352"]
[BlackElo "2234"]
[TimeControl "180+1"]
[EndTime "11:57:13 PDT"]
[Termination "PowerThinking2650 won by resignation"]

1. e4 {[%clk 0:03:00.9]} 1... e5 {[%clk 0:02:58.3]} 2. Nf3 {[%clk 0:03:00.3]}
2... Nc6 {[%clk 0:02:58]} 3. Nc3 {[%clk 0:03:00.9]} 3... Nf6 {[%clk 0:02:57.7]}
4. d4 {[%clk 0:03:01.4]} 4... exd4 {[%clk 0:02:57.6]} 5. Nxd4 {[%clk 0:03:02.1]}
5... Nxe4 {[%clk 0:02:57.8]} 6. Nxe4 {[%clk 0:02:56.9]} 6... Qe7 {[%clk
0:02:57.6]} 7. f3 {[%clk 0:02:57]} 7... d5 {[%clk 0:02:56.9]} 8. Nxc6 {[%clk
0:02:53.3]} 8... bxc6 {[%clk 0:02:56.4]} 9. Bd3 {[%clk 0:02:52.7]} 9... dxe4
{[%clk 0:02:50.2]} 10. fxe4 {[%clk 0:02:53]} 10... Qh4+ {[%clk 0:02:44.3]} 11.
g3 {[%clk 0:02:49.8]} 11... Qh3 {[%clk 0:02:42.3]} 12. Qf3 {[%clk 0:02:37.4]}
12... Bc5 {[%clk 0:02:26.6]} 13. Be3 {[%clk 0:02:21.5]} 13... Bg4 {[%clk
0:02:24.2]} 14. Qf2 {[%clk 0:02:15.7]} 14... Bxe3 {[%clk 0:02:20.9]} 15. Qxe3
{[%clk 0:02:16.6]} 15... Qg2 {[%clk 0:02:02.9]} 16. Rg1 {[%clk 0:01:52.3]} 16...
Qxh2 {[%clk 0:01:59.8]} 17. Qc5 {[%clk 0:01:44.4]} 17... Rd8 {[%clk 0:01:08]}
18. Qxc6+ {[%clk 0:01:33.3]} 18... Bd7 {[%clk 0:00:51.5]} 19. Qc5 {[%clk
0:01:27.8]} 19... Bg4 {[%clk 0:00:51.4]} 1-0

[Event "*** SCC Grand Prix: Titled Tuesday Blitz"]
[Site "Chess.com"]
[Date "2020.07.21"]
[Round "10"]
[White "arminmusovic"]
[Black "Batsai"]
[Result "1-0"]
[WhiteElo "2518"]
[BlackElo "2360"]
[TimeControl "180+1"]
[EndTime "11:57:28 PDT"]
[Termination "arminmusovic won by resignation"]

1. a3 {[%clk 0:03:00.9]} 1... Nf6 {[%clk 0:02:59]} 2. Nc3 {[%clk 0:03:01.8]}
2... d5 {[%clk 0:02:57.8]} 3. d3 {[%clk 0:03:02.1]} 3... c5 {[%clk 0:02:56.4]}
4. Bg5 {[%clk 0:03:00.8]} 4... Nc6 {[%clk 0:02:56.1]} 5. e4 {[%clk 0:03:01]}
5... dxe4 {[%clk 0:02:55.4]} 6. dxe4 {[%clk 0:03:01.9]} 6... Qxd1+ {[%clk
0:02:55.5]} 7. Rxd1 {[%clk 0:03:02.8]} 7... a6 {[%clk 0:02:54]} 8. Bxf6 {[%clk
0:03:01]} 8... exf6 {[%clk 0:02:47.9]} 9. Nd5 {[%clk 0:03:01.3]} 9... Rb8 {[%clk
0:02:43.1]} 10. Nc7+ {[%clk 0:02:59.1]} 10... Ke7 {[%clk 0:02:41.7]} 11. Nd5+
{[%clk 0:02:59.3]} 11... Ke8 {[%clk 0:02:41.7]} 12. Nc7+ {[%clk 0:02:55.3]}
12... Ke7 {[%clk 0:02:41.5]} 13. Nf3 {[%clk 0:02:56.2]} 13... g6 {[%clk
0:02:32.1]} 14. Bc4 {[%clk 0:02:51.1]} 14... Bg7 {[%clk 0:02:29.8]} 15. Nd5+
{[%clk 0:02:44.8]} 15... Ke8 {[%clk 0:02:29]} 16. Nb6 {[%clk 0:02:45.3]} 16...
Be6 {[%clk 0:02:25.7]} 17. Bxe6 {[%clk 0:02:45.3]} 17... fxe6 {[%clk 0:02:26.6]}
18. Nd7 {[%clk 0:02:42.2]} 18... Rd8 {[%clk 0:02:13.1]} 19. Nxc5 {[%clk
0:02:42.4]} 19... Rxd1+ {[%clk 0:02:11.5]} 20. Kxd1 {[%clk 0:02:43.3]} 20... Ke7
{[%clk 0:02:11.3]} 21. c3 {[%clk 0:02:42.2]} 21... b5 {[%clk 0:02:09.2]} 22.
Nxa6 {[%clk 0:02:39.6]} 22... Rd8+ {[%clk 0:02:08.5]} 23. Kc2 {[%clk 0:02:39.2]}
23... Bh6 {[%clk 0:02:07.3]} 24. Rd1 {[%clk 0:02:38.5]} 24... Ra8 {[%clk
0:02:06.6]} 25. Nc5 {[%clk 0:02:33.1]} 25... Ra7 {[%clk 0:02:06.7]} 26. Nb3
{[%clk 0:02:32.2]} 26... g5 {[%clk 0:02:05.3]} 27. Nfd4 {[%clk 0:02:32.2]} 27...
Nxd4+ {[%clk 0:02:03.9]} 28. Rxd4 {[%clk 0:02:30.3]} 28... Rb7 {[%clk
0:02:04.8]} 29. Rb4 {[%clk 0:02:30.4]} 29... g4 {[%clk 0:02:05]} 30. a4 {[%clk
0:02:27.3]} 30... Bf4 {[%clk 0:02:05.4]} 31. g3 {[%clk 0:02:26.8]} 31... Bd6
{[%clk 0:02:04.7]} 32. Rxb5 {[%clk 0:02:27.2]} 32... Rxb5 {[%clk 0:02:05.6]} 33.
axb5 {[%clk 0:02:27.9]} 33... Bc7 {[%clk 0:02:05.3]} 34. c4 {[%clk 0:02:27.8]}
34... f5 {[%clk 0:02:02.4]} 35. Kd3 {[%clk 0:02:27.3]} 35... f4 {[%clk
0:01:59.4]} 36. c5 {[%clk 0:02:26.8]} 36... f3 {[%clk 0:01:59.1]} 37. b6 {[%clk
0:02:25.6]} 37... Be5 {[%clk 0:01:55.9]} 38. Nd4 {[%clk 0:02:17.9]} 38... Kd7
{[%clk 0:01:54.2]} 39. b4 {[%clk 0:02:17.8]} 39... h5 {[%clk 0:01:52.9]} 40. c6+
{[%clk 0:02:06.6]} 40... Kc8 {[%clk 0:01:47.6]} 41. Nc2 {[%clk 0:01:47.7]} 41...
h4 {[%clk 0:01:46.7]} 42. Ne3 {[%clk 0:01:47.4]} 42... h3 {[%clk 0:01:43.8]} 43.
Nxg4 {[%clk 0:01:44.9]} 43... Bd6 {[%clk 0:01:44.2]} 44. Kc4 {[%clk 0:01:42.8]}
44... Kb8 {[%clk 0:01:43.7]} 45. e5 {[%clk 0:01:42.6]} 45... Bf8 {[%clk
0:01:42.1]} 46. Nf6 {[%clk 0:01:36.5]} 46... Kc8 {[%clk 0:01:40.8]} 47. b7+
{[%clk 0:01:32.1]} 47... Kd8 {[%clk 0:01:38.7]} 48. b8=Q+ {[%clk 0:01:33]} 48...
Ke7 {[%clk 0:01:37.5]} 49. Qd6+ {[%clk 0:01:33.1]} 1-0

[Event "*** SCC Grand Prix: Titled Tuesday Blitz"]
[Site "Chess.com"]
[Date "2020.07.21"]
[Round "10"]
[White "cukin84"]
[Black "Chuchofrio1"]
[Result "0-1"]
[WhiteElo "2162"]
[BlackElo "2274"]
[TimeControl "180+1"]
[EndTime "11:57:31 PDT"]
[Termination "Chuchofrio1 won by checkmate"]

1. e4 {[%clk 0:03:00.9]} 1... c5 {[%clk 0:02:59.7]} 2. Nc3 {[%clk 0:02:59.9]}
2... Nc6 {[%clk 0:02:58.7]} 3. Bb5 {[%clk 0:02:57.8]} 3... Nd4 {[%clk
0:02:58.4]} 4. Bc4 {[%clk 0:02:57]} 4... e6 {[%clk 0:02:57.1]} 5. Nf3 {[%clk
0:02:56]} 5... g6 {[%clk 0:02:53.5]} 6. Nxd4 {[%clk 0:02:53.3]} 6... cxd4 {[%clk
0:02:53.3]} 7. Nb5 {[%clk 0:02:53.5]} 7... Bg7 {[%clk 0:02:33.1]} 8. Nd6+ {[%clk
0:02:51.6]} 8... Ke7 {[%clk 0:02:33]} 9. Nxc8+ {[%clk 0:02:47.3]} 9... Rxc8
{[%clk 0:02:32.6]} 10. d3 {[%clk 0:02:47.6]} 10... Nf6 {[%clk 0:02:24.1]} 11. e5
{[%clk 0:02:46.8]} 11... Nd5 {[%clk 0:02:15.7]} 12. Bxd5 {[%clk 0:02:42.3]}
12... exd5 {[%clk 0:02:15.7]} 13. Bg5+ {[%clk 0:02:41.5]} 13... f6 {[%clk
0:02:15.1]} 14. exf6+ {[%clk 0:02:36.7]} 14... Bxf6 {[%clk 0:02:14.9]} 15. Bxf6+
{[%clk 0:02:37]} 15... Kxf6 {[%clk 0:02:15.1]} 16. Qf3+ {[%clk 0:02:37.1]} 16...
Kg7 {[%clk 0:02:14.6]} 17. O-O {[%clk 0:02:36.1]} 17... Qg5 {[%clk 0:02:09.6]}
18. Rae1 {[%clk 0:02:22.6]} 18... Rxc2 {[%clk 0:02:02]} 19. h4 {[%clk
0:02:21.5]} 19... Qxh4 {[%clk 0:01:51.7]} 20. Qxd5 {[%clk 0:02:16.9]} 20... Rf8
{[%clk 0:01:45.3]} 21. Re4 {[%clk 0:02:00.8]} 21... Qf6 {[%clk 0:01:29.8]} 22.
f3 {[%clk 0:01:41.3]} 22... Rxb2 {[%clk 0:01:21.6]} 23. Rfe1 {[%clk 0:01:40.5]}
23... Rf7 {[%clk 0:01:09.6]} 24. Re8 {[%clk 0:01:35.8]} 24... Qh4 {[%clk
0:00:58.3]} 25. R8e4 {[%clk 0:01:14.8]} 25... Qf2+ {[%clk 0:00:56]} 26. Kh2
{[%clk 0:01:13.7]} 26... Qxg2# {[%clk 0:00:56]} 0-1

[Event "*** SCC Grand Prix: Titled Tuesday Blitz"]
[Site "Chess.com"]
[Date "2020.07.21"]
[Round "10"]
[White "Susal_De_Silva"]
[Black "ehrenfeld"]
[Result "0-1"]
[WhiteElo "2335"]
[BlackElo "2520"]
[TimeControl "180+1"]
[EndTime "11:57:32 PDT"]
[Termination "ehrenfeld won by resignation"]

1. e4 {[%clk 0:03:00.9]} 1... e5 {[%clk 0:02:59.4]} 2. Nf3 {[%clk 0:03:00.6]}
2... Nc6 {[%clk 0:02:59.5]} 3. Bc4 {[%clk 0:03:00.5]} 3... Nf6 {[%clk
0:02:58.5]} 4. d3 {[%clk 0:03:00.2]} 4... h6 {[%clk 0:02:58]} 5. O-O {[%clk
0:02:59.6]} 5... d6 {[%clk 0:02:58.2]} 6. c3 {[%clk 0:02:59.3]} 6... g5 {[%clk
0:02:58.4]} 7. d4 {[%clk 0:02:57.3]} 7... g4 {[%clk 0:02:58]} 8. dxe5 {[%clk
0:02:55.1]} 8... gxf3 {[%clk 0:02:57.5]} 9. exf6 {[%clk 0:02:55.3]} 9... Ne5
{[%clk 0:02:57.4]} 10. Bb3 {[%clk 0:02:43.5]} 10... Qxf6 {[%clk 0:02:54.7]} 11.
g3 {[%clk 0:02:23.8]} 11... Rg8 {[%clk 0:02:50.1]} 12. Nd2 {[%clk 0:02:22.1]}
12... h5 {[%clk 0:02:41.1]} 13. Nc4 {[%clk 0:02:05.8]} 13... h4 {[%clk
0:02:40.1]} 14. Ne3 {[%clk 0:02:01.5]} 14... c6 {[%clk 0:02:29.4]} 15. Bd2
{[%clk 0:01:48.5]} 15... Be6 {[%clk 0:02:27.3]} 16. c4 {[%clk 0:01:44.6]} 16...
O-O-O {[%clk 0:02:24.2]} 17. Bc3 {[%clk 0:01:43]} 17... Bh6 {[%clk 0:02:17.6]}
18. Re1 {[%clk 0:01:22.1]} 18... hxg3 {[%clk 0:02:11.1]} 19. hxg3 {[%clk
0:01:21.4]} 19... Bf4 {[%clk 0:01:35.4]} 20. Bxe5 {[%clk 0:01:02.4]} 20... Bxe5
{[%clk 0:01:31.7]} 21. Nf1 {[%clk 0:00:58.5]} 21... Rh8 {[%clk 0:01:28.5]} 22.
Re3 {[%clk 0:00:56.7]} 22... Bg4 {[%clk 0:01:26]} 23. Nh2 {[%clk 0:00:49.4]}
23... Rxh2 {[%clk 0:01:24.9]} 24. Kxh2 {[%clk 0:00:49.8]} 24... Rh8+ {[%clk
0:01:20.1]} 25. Kg1 {[%clk 0:00:50.4]} 25... Qh6 {[%clk 0:01:19.5]} 0-1

[Event "*** SCC Grand Prix: Titled Tuesday Blitz"]
[Site "Chess.com"]
[Date "2020.07.21"]
[Round "10"]
[White "MIJUAREZ"]
[Black "HElissalt"]
[Result "1-0"]
[WhiteElo "2395"]
[BlackElo "2272"]
[TimeControl "180+1"]
[EndTime "11:57:32 PDT"]
[Termination "MIJUAREZ won by resignation"]

1. e4 {[%clk 0:03:00.9]} 1... d6 {[%clk 0:02:56.4]} 2. d4 {[%clk 0:02:59.2]}
2... Nf6 {[%clk 0:02:53.7]} 3. Nc3 {[%clk 0:02:58.3]} 3... e5 {[%clk 0:02:52.8]}
4. Nf3 {[%clk 0:02:53.7]} 4... Nbd7 {[%clk 0:02:49.8]} 5. Bc4 {[%clk 0:02:52.3]}
5... Be7 {[%clk 0:02:47.4]} 6. O-O {[%clk 0:02:45.6]} 6... O-O {[%clk
0:02:46.9]} 7. a4 {[%clk 0:02:46.2]} 7... c6 {[%clk 0:02:40.4]} 8. a5 {[%clk
0:02:46.3]} 8... Rb8 {[%clk 0:02:37.9]} 9. h3 {[%clk 0:02:44.9]} 9... b5 {[%clk
0:02:32.5]} 10. axb6 {[%clk 0:02:44]} 10... axb6 {[%clk 0:02:32.5]} 11. d5
{[%clk 0:02:44.6]} 11... b5 {[%clk 0:02:21.6]} 12. dxc6 {[%clk 0:02:38.1]} 12...
bxc4 {[%clk 0:02:16.8]} 13. cxd7 {[%clk 0:02:37.5]} 13... Bxd7 {[%clk
0:02:14.2]} 14. Qe2 {[%clk 0:02:36.9]} 14... Qc7 {[%clk 0:02:05.2]} 15. Bg5
{[%clk 0:02:32.1]} 15... Be6 {[%clk 0:01:42.9]} 16. Rfb1 {[%clk 0:02:22.3]}
16... Rb4 {[%clk 0:01:41.7]} 17. Bxf6 {[%clk 0:02:05.7]} 17... Bxf6 {[%clk
0:01:40.6]} 18. Nd5 {[%clk 0:02:05.1]} 18... Bxd5 {[%clk 0:01:37.3]} 19. exd5
{[%clk 0:02:04.2]} 19... Rfb8 {[%clk 0:01:23.1]} 20. c3 {[%clk 0:01:57.8]} 20...
R4b5 {[%clk 0:01:21.4]} 21. Nd2 {[%clk 0:01:53.7]} 21... Rxd5 {[%clk 0:01:16]}
22. Nxc4 {[%clk 0:01:52.3]} 22... Rdb5 {[%clk 0:01:14]} 23. b4 {[%clk
0:01:49.8]} 23... d5 {[%clk 0:01:11.1]} 24. Na3 {[%clk 0:01:35.5]} 24... R5b7
{[%clk 0:01:04.6]} 25. Rc1 {[%clk 0:01:36.1]} 25... Ra8 {[%clk 0:00:57.8]} 26.
Nc2 {[%clk 0:01:17]} 26... Qxc3 {[%clk 0:00:53.5]} 27. Rxa8+ {[%clk 0:01:14.9]}
1-0